Workbook

Sheet Ladder
B1: The Slipping Ladder Problem
B3: This DIGMath module lets you investigate
B4: the related rates calculus problem of finding
B5: the rate dy/dt at which the height y
B6: of a ladder of length L decreases
B7: as the ladder slips away from the wall
C8: at a given rate dx/dt.
A11: What is the length L of the ladder (6 - 12 feet)?
D12: 10 | E12: =#REF!+D12*(#REF!-#REF!)/100 ->  | F12: =D12 -> 10
A14: How far from the wall x (1 - 10) does the ladder's base start?
D15: 3 | E15: =#REF!+D15*(#REF!-#REF!)/100 ->  | F15: =D15 -> 3
A17: How fast is the bottom of the ladder slipping (-1 to -10 ft per sec)?
D18: 3 | E18: =#REF!+D18*(#REF!-#REF!)/100 ->  | F18: =-D18 -> -3
A22: Click each item below for suggestions and investigations | L22: Select the distance from the wall: x0 = | P22: =IF(O23/5>L,L,O23/5) -> 8 | Q22: feet | R22: Time = | S22: =LOOKUP(x0, Sheet2!B3:B103,Sheet2!C3:C103) -> 0.21 | T22: seconds
C23: Item 1 | O23: 40 | P23: =Sheet2!#REF!+O23*(Sheet2!#REF!-Sheet2!#REF!)/100 -> 
C24: Item 2
C25: Item 3 | N25: The height of the ladder is | P25: =LOOKUP(x0+0.1,Sheet2!B3:B203,Sheet2!D3:D203) -> 6.0 | Q25: feet
C26: Item 4
L27: The height of the ladder is decreasing at a rate of | Q27: =LOOKUP(x0,Sheet2!B3:B103, Sheet2!E3:E103) -> -9.4 | R27: feet per second
A29: To access/download all the DIGMath Apps for Calculus
A30: Click this link: | C30: DIGMath for Calculus
A32: Created by: Sheldon P. Gordon
A33: Farmingdale State College
A34: Development of this module was supported by the
A35: NSF's Division of Undergraduate Education
A36: under grants DUE-0310123 and DUE-0442160.

Sheet Sheet2
B1: x | C1: t | D1: Height | E1: dy/dt | H1: Ladder | I1: 0 | J1: =SQRT(L^2-H^2) -> 9.539392014
I2: =H -> 3 | J2: 0 | L2: slope
A3: 0 | B3: 0.0 | C3: =B3/rate -> 0.00 | D3: =SQRT(L^2-B3^2) -> 10.00 | E3: =(D4-D3)/dt -> -0.07 | L3: =($J2-$J5)/x0 -> -0.75
A4: 1 | B4: =B3+0.2 -> 0.2 | C4: =B4*dt -> 0.01 | D4: =IF(L^2-B4^2<0,0,SQRT(L^2-B4^2)) -> 10.00 | E4: -0.22 | H4: Sliding ladder | I4: =x0 -> 8 | J4: 0
A5: 2 | B5: =B4+0.2 -> 0.4 | C5: 0.01 | D5: 9.99 | E5: -0.37 | I5: 0 | J5: =SQRT(L^2-x0^2) -> 6 | N5: =t0 -> 0.2
A6: 3 | B6: 0.6 | C6: 0.02 | D6: 9.98 | E6: -0.51
A7: 4 | B7: 0.8 | C7: 0.02 | D7: 9.97 | E7: -0.66
A8: 5 | B8: 1.0 | C8: 0.03 | D8: 9.95 | E8: -0.81
A9: 6 | B9: 1.2 | C9: 0.03 | D9: 9.93 | E9: -0.96 | M9: x=x0+y0/m
A10: 7 | B10: 1.4 | C10: 0.04 | D10: 9.90 | E10: -1.11
A11: 8 | B11: 1.6 | C11: 0.04 | D11: 9.87 | E11: -1.26
A12: 9 | B12: 1.8 | C12: 0.05 | D12: 9.84 | E12: -1.42 | L12: total time = | M12: =-(L-x)/rate -> 2.733333333 | N12: secs
A13: 10 | B13: 2.0 | C13: 0.05 | D13: 9.80 | E13: -1.57 | L13: dt = | M13: =time/100 -> 0.02733333333
A14: 11 | B14: 2.2 | C14: 0.06 | D14: 9.75 | E14: -1.73 | H14: First Chart | L14: dx = | M14: =(L-H)/100 -> 0.07
A15: 12 | B15: 2.4 | C15: 0.07 | D15: 9.71 | E15: -1.89 | H15: Vertical Line
A16: 13 | B16: 2.6 | C16: 0.07 | D16: 9.66 | E16: -2.05 | I16: =H20 -> 8 | J16: 0
A17: 14 | B17: 2.8 | C17: 0.08 | D17: 9.60 | E17: -2.22 | I17: =H20 -> 8 | J17: =J5 -> 6.00
A18: 15 | B18: 3.0 | C18: 0.08 | D18: 9.54 | E18: -2.39
A19: 16 | B19: 3.2 | C19: 0.09 | D19: 9.47 | E19: -2.56 | H19: Point
A20: 17 | B20: 3.4 | C20: 0.09 | D20: 9.40 | E20: -2.73 | H20: =x0 -> 8 | I20: 0
A21: 18 | B21: 3.6 | C21: 0.10 | D21: 9.33 | E21: -2.91
A22: 19 | B22: 3.8 | C22: 0.10 | D22: 9.25 | E22: -3.10 | H22: Second Chart
A23: 20 | B23: 4.0 | C23: 0.11 | D23: 9.17 | E23: -3.29 | H23: Vertical Line
A24: 21 | B24: 4.2 | C24: 0.11 | D24: 9.08 | E24: -3.49 | I24: =H38 -> 8 | J24: 0
A25: 22 | B25: 4.4 | C25: 0.12 | D25: 8.98 | E25: -3.69 | I25: =H38 -> 8 | J25: =LOOKUP(x0+0.01,B3:B203,D3:D203) -> 6
A26: 23 | B26: 4.6 | C26: 0.13 | D26: 8.88 | E26: -3.90
A27: 24 | B27: 4.8 | C27: 0.13 | D27: 8.77 | E27: -4.11 | H27: Third Chart
A28: 25 | B28: 5.0 | C28: 0.14 | D28: 8.66 | E28: -4.34 | H28: Vertical Line
A29: 26 | B29: 5.2 | C29: 0.14 | D29: 8.54 | E29: -4.57 | I29: =LOOKUP(x0,B3:B203,C3:C203) -> 0.2132 | J29: 0
A30: 27 | B30: 5.4 | C30: 0.15 | D30: 8.42 | E30: -4.82 | I30: =I29 -> 0.2132 | J30: =LOOKUP(x0+0.1,B3:B203,D3:D203) -> 6
A31: 28 | B31: 5.6 | C31: 0.15 | D31: 8.28 | E31: -5.08
A32: 29 | B32: 5.8 | C32: 0.16 | D32: 8.15 | E32: -5.35 | H32: Fourth Chart
A33: 30 | B33: 6.0 | C33: 0.16 | D33: 8.00 | E33: -5.63 | H33: Vertical Line
A34: 31 | B34: 6.2 | C34: 0.17 | D34: 7.85 | E34: -5.94 | I34: =LOOKUP(x0,B3:B203,C3:C203) -> 0.2132 | J34: 0
A35: 32 | B35: 6.4 | C35: 0.17 | D35: 7.68 | E35: =(D36-D35)/dt -> -6.26 | I35: =I34 -> 0.2132 | J35: =LOOKUP(x0,B3:B203,E3:E203) -> -9.431529471
A36: 33 | B36: 6.6 | C36: =B36*dt -> 0.18 | D36: =IF(L^2-B36^2<0,0,SQRT(L^2-B36^2)) -> 7.51 | E36: -6.60
A37: 34 | B37: 6.8 | C37: 0.19 | D37: 7.33 | E37: -6.98 | H37: Point
A38: 35 | B38: 7.0 | C38: 0.19 | D38: 7.14 | E38: -7.38 | H38: =x0 -> 8 | I38: 0
A39: 36 | B39: 7.2 | C39: 0.20 | D39: 6.94 | E39: -7.82
A40: 37 | B40: 7.4 | C40: 0.20 | D40: 6.73 | E40: -8.30 | H40: Point on curve
A41: 38 | B41: 7.6 | C41: 0.21 | D41: 6.50 | E41: -8.83 | H41: x= | I41: =H20*I14 -> 0
A42: 39 | B42: 7.8 | C42: 0.21 | D42: 6.26 | E42: -9.43 | H42: =x0 -> 8 | I42: =LOOKUP(x0,B3:B84,C3:C84) -> 0.2132
A43: 40 | B43: 8.0 | C43: 0.22 | D43: 6.00 | E43: -10.11
A44: 41 | B44: 8.2 | C44: 0.22 | D44: 5.72 | E44: -10.89
A45: 42 | B45: 8.4 | C45: 0.23 | D45: 5.43 | E45: -11.81
A46: 43 | B46: 8.6 | C46: 0.24 | D46: 5.10 | E46: -12.92
A47: 44 | B47: 8.8 | C47: 0.24 | D47: 4.75 | E47: -14.30
A48: 45 | B48: 9.0 | C48: 0.25 | D48: 4.36 | E48: -16.09
A49: 46 | B49: 9.2 | C49: 0.25 | D49: 3.92 | E49: -18.56
A50: 47 | B50: 9.4 | C50: 0.26 | D50: 3.41 | E50: -22.38
A51: 48 | B51: 9.6 | C51: 0.26 | D51: 2.80 | E51: -29.64
A52: 49 | B52: 9.8 | C52: 0.27 | D52: 1.99 | E52: -72.80
A53: 50 | B53: 10.0 | C53: 0.27 | D53: 0.00 | E53: -0.00
A54: 51 | B54: 10.2 | C54: 0.28 | D54: 0.00 | E54: 0.00
A55: 52 | B55: 10.4 | C55: 0.28 | D55: 0.00 | E55: 0.00
A56: 53 | B56: 10.6 | C56: 0.29 | D56: 0.00 | E56: 0.00
A57: 54 | B57: 10.8 | C57: 0.30 | D57: 0.00 | E57: 0.00
A58: 55 | B58: 11.0 | C58: 0.30 | D58: 0.00 | E58: 0.00
A59: 56 | B59: 11.2 | C59: 0.31 | D59: 0.00 | E59: 0.00
A60: 57 | B60: 11.4 | C60: 0.31 | D60: 0.00 | E60: 0.00
A61: 58 | B61: 11.6 | C61: 0.32 | D61: 0.00 | E61: 0.00
A62: 59 | B62: 11.8 | C62: 0.32 | D62: 0.00 | E62: 0.00
A63: 60 | B63: 12.0 | C63: 0.33 | D63: 0.00 | E63: 0.00
A64: 61 | B64: 12.2 | C64: 0.33 | D64: 0.00 | E64: 0.00
A65: 62 | B65: 12.4 | C65: 0.34 | D65: 0.00 | E65: 0.00
A66: 63 | B66: 12.6 | C66: 0.34 | D66: 0.00 | E66: 0.00
A67: 64 | B67: 12.8 | C67: 0.35 | D67: 0.00 | E67: =(D68-D67)/dt -> 0.00
A68: 65 | B68: 13.0 | C68: =B68*dt -> 0.36 | D68: =IF(L^2-B68^2<0,0,SQRT(L^2-B68^2)) -> 0.00 | E68: 0.00
A69: 66 | B69: =B68+0.2 -> 13.2 | C69: 0.36 | D69: 0.00 | E69: 0.00
A70: 67 | B70: 13.4 | C70: 0.37 | D70: 0.00 | E70: 0.00
A71: 68 | B71: 13.6 | C71: 0.37 | D71: 0.00 | E71: 0.00
A72: 69 | B72: 13.8 | C72: 0.38 | D72: 0.00 | E72: 0.00
A73: 70 | B73: 14.0 | C73: 0.38 | D73: 0.00 | E73: 0.00
A74: 71 | B74: 14.2 | C74: 0.39 | D74: 0.00 | E74: 0.00
A75: 72 | B75: 14.4 | C75: 0.39 | D75: 0.00 | E75: 0.00
A76: 73 | B76: 14.6 | C76: 0.40 | D76: 0.00 | E76: 0.00
A77: 74 | B77: 14.8 | C77: 0.40 | D77: 0.00 | E77: 0.00
A78: 75 | B78: 15.0 | C78: 0.41 | D78: 0.00 | E78: 0.00
A79: 76 | B79: 15.2 | C79: 0.42 | D79: 0.00 | E79: 0.00
A80: 77 | B80: 15.4 | C80: 0.42 | D80: 0.00 | E80: 0.00
A81: 78 | B81: 15.6 | C81: 0.43 | D81: 0.00 | E81: 0.00
A82: 79 | B82: 15.8 | C82: 0.43 | D82: 0.00 | E82: 0.00
A83: 80 | B83: 16.0 | C83: 0.44 | D83: 0.00 | E83: 0.00
A84: 81 | B84: 16.2 | C84: 0.44 | D84: 0.00 | E84: 0.00
A85: 82 | B85: 16.4 | C85: 0.45 | D85: 0.00 | E85: 0.00
A86: 83 | B86: 16.6 | C86: 0.45 | D86: 0.00 | E86: 0.00
A87: 84 | B87: 16.8 | C87: 0.46 | D87: 0.00 | E87: 0.00
A88: 85 | B88: 17.0 | C88: 0.46 | D88: 0.00 | E88: 0.00
A89: 86 | B89: 17.2 | C89: 0.47 | D89: 0.00 | E89: 0.00
A90: 87 | B90: 17.4 | C90: 0.48 | D90: 0.00 | E90: 0.00
A91: 88 | B91: 17.6 | C91: 0.48 | D91: 0.00 | E91: 0.00
A92: 89 | B92: 17.8 | C92: 0.49 | D92: 0.00 | E92: 0.00
A93: 90 | B93: 18.0 | C93: 0.49 | D93: 0.00 | E93: 0.00
A94: 91 | B94: 18.2 | C94: 0.50 | D94: 0.00 | E94: 0.00
A95: 92 | B95: 18.4 | C95: 0.50 | D95: 0.00 | E95: 0.00
A96: 93 | B96: 18.6 | C96: 0.51 | D96: 0.00 | E96: 0.00
A97: 94 | B97: 18.8 | C97: 0.51 | D97: 0.00 | E97: 0.00
A98: 95 | B98: 19.0 | C98: 0.52 | D98: 0.00 | E98: 0.00
A99: 96 | B99: 19.2 | C99: 0.52 | D99: 0.00 | E99: =(D100-D99)/dt -> 0.00
A100: 97 | B100: 19.4 | C100: =B100*dt -> 0.53 | D100: =IF(L^2-B100^2<0,0,SQRT(L^2-B100^2)) -> 0.00 | E100: 0.00
A101: 98 | B101: 19.6 | C101: 0.54 | D101: 0.00 | E101: 0.00
A102: 99 | B102: 19.8 | C102: 0.54 | D102: 0.00 | E102: 0.00
A103: 100 | B103: 20.0 | C103: 0.55 | D103: 0.00 | E103: 0.00
B104: 20.2 | C104: 0.5521333333 | D104: 0 | E104: 0
B105: 20.4 | C105: 0.5576 | D105: 0 | E105: 0
B106: 20.6 | C106: 0.5630666667 | D106: 0 | E106: 0
B107: 20.8 | C107: 0.5685333333 | D107: 0 | E107: 0
B108: 21.0 | C108: 0.574 | D108: 0 | E108: 0
B109: 21.2 | C109: 0.5794666667 | D109: 0 | E109: 0
B110: 21.4 | C110: 0.5849333333 | D110: 0 | E110: 0
B111: 21.6 | C111: 0.5904 | D111: 0 | E111: 0
B112: 21.8 | C112: 0.5958666667 | D112: 0 | E112: 0
B113: 22.0 | C113: 0.6013333333 | D113: 0 | E113: 0
B114: 22.2 | C114: 0.6068 | D114: 0 | E114: 0
B115: 22.4 | C115: 0.6122666667 | D115: 0 | E115: 0
B116: 22.6 | C116: 0.6177333333 | D116: 0 | E116: 0
B117: 22.8 | C117: 0.6232 | D117: 0 | E117: 0
B118: 23.0 | C118: 0.6286666667 | D118: 0 | E118: 0
B119: 23.2 | C119: 0.6341333333 | D119: 0 | E119: 0
B120: 23.4 | C120: 0.6396 | D120: 0 | E120: 0
B121: 23.6 | C121: 0.6450666667 | D121: 0 | E121: 0
B122: 23.8 | C122: 0.6505333333 | D122: 0 | E122: 0
B123: 24.0 | C123: 0.656 | D123: 0 | E123: 0
B124: 24.2 | C124: 0.6614666667 | D124: 0 | E124: 0
B125: 24.4 | C125: 0.6669333333 | D125: 0 | E125: 0
B126: 24.6 | C126: 0.6724 | D126: 0 | E126: 0
B127: 24.8 | C127: 0.6778666667 | D127: 0 | E127: 0
B128: 25.0 | C128: 0.6833333333 | D128: 0 | E128: 0
B129: 25.2 | C129: 0.6888 | D129: 0 | E129: 0
B130: 25.4 | C130: 0.6942666667 | D130: 0 | E130: 0
B131: 25.6 | C131: 0.6997333333 | D131: 0 | E131: =(D132-D131)/dt -> 0
B132: 25.8 | C132: =B132*dt -> 0.7052 | D132: =IF(L^2-B132^2<0,0,SQRT(L^2-B132^2)) -> 0 | E132: 0
B133: =B132+0.2 -> 26.0 | C133: 0.7106666667 | D133: 0 | E133: 0
B134: 26.2 | C134: 0.7161333333 | D134: 0 | E134: 0
B135: 26.4 | C135: 0.7216 | D135: 0 | E135: 0
B136: 26.6 | C136: 0.7270666667 | D136: 0 | E136: 0
B137: 26.8 | C137: 0.7325333333 | D137: 0 | E137: 0
B138: 27.0 | C138: 0.738 | D138: 0 | E138: 0
B139: 27.2 | C139: 0.7434666667 | D139: 0 | E139: 0
B140: 27.4 | C140: 0.7489333333 | D140: 0 | E140: 0
B141: 27.6 | C141: 0.7544 | D141: 0 | E141: 0
B142: 27.8 | C142: 0.7598666667 | D142: 0 | E142: 0
B143: 28.0 | C143: 0.7653333333 | D143: 0 | E143: 0
B144: 28.2 | C144: 0.7708 | D144: 0 | E144: 0
B145: 28.4 | C145: 0.7762666667 | D145: 0 | E145: 0
B146: 28.6 | C146: 0.7817333333 | D146: 0 | E146: 0
B147: 28.8 | C147: 0.7872 | D147: 0 | E147: 0
B148: 29.0 | C148: 0.7926666667 | D148: 0 | E148: 0
B149: 29.2 | C149: 0.7981333333 | D149: 0 | E149: 0
B150: 29.4 | C150: 0.8036 | D150: 0 | E150: 0
B151: 29.6 | C151: 0.8090666667 | D151: 0 | E151: 0
B152: 29.8 | C152: 0.8145333333 | D152: 0 | E152: 0
B153: 30.0 | C153: 0.82 | D153: 0 | E153: 0
B154: 30.2 | C154: 0.8254666667 | D154: 0 | E154: 0
B155: 30.4 | C155: 0.8309333333 | D155: 0 | E155: 0
B156: 30.6 | C156: 0.8364 | D156: 0 | E156: 0
B157: 30.8 | C157: 0.8418666667 | D157: 0 | E157: 0
B158: 31.0 | C158: 0.8473333333 | D158: 0 | E158: 0
B159: 31.2 | C159: 0.8528 | D159: 0 | E159: 0
B160: 31.4 | C160: 0.8582666667 | D160: 0 | E160: 0
B161: 31.6 | C161: 0.8637333333 | D161: 0 | E161: 0
B162: 31.8 | C162: 0.8692 | D162: 0 | E162: 0
B163: 32.0 | C163: 0.8746666667 | D163: 0 | E163: =(D164-D163)/dt -> 0
B164: 32.2 | C164: =B164*dt -> 0.8801333333 | D164: =IF(L^2-B164^2<0,0,SQRT(L^2-B164^2)) -> 0 | E164: 0
B165: 32.4 | C165: 0.8856 | D165: 0 | E165: 0
B166: 32.6 | C166: 0.8910666667 | D166: 0 | E166: 0
B167: 32.8 | C167: 0.8965333333 | D167: 0 | E167: 0
B168: 33.0 | C168: 0.902 | D168: 0 | E168: 0
B169: 33.2 | C169: 0.9074666667 | D169: 0 | E169: 0
B170: 33.4 | C170: 0.9129333333 | D170: 0 | E170: 0
B171: 33.6 | C171: 0.9184 | D171: 0 | E171: 0
B172: 33.8 | C172: 0.9238666667 | D172: 0 | E172: 0
B173: 34.0 | C173: 0.9293333333 | D173: 0 | E173: 0
B174: 34.2 | C174: 0.9348 | D174: 0 | E174: 0
B175: 34.4 | C175: 0.9402666667 | D175: 0 | E175: 0
B176: 34.6 | C176: 0.9457333333 | D176: 0 | E176: 0
B177: 34.8 | C177: 0.9512 | D177: 0 | E177: 0
B178: 35.0 | C178: 0.9566666667 | D178: 0 | E178: 0
B179: 35.2 | C179: 0.9621333333 | D179: 0 | E179: 0
B180: 35.4 | C180: 0.9676 | D180: 0 | E180: 0
B181: 35.6 | C181: 0.9730666667 | D181: 0 | E181: 0
B182: 35.8 | C182: 0.9785333333 | D182: 0 | E182: 0
B183: 36.0 | C183: 0.984 | D183: 0 | E183: 0
B184: 36.2 | C184: 0.9894666667 | D184: 0 | E184: 0
B185: 36.4 | C185: 0.9949333333 | D185: 0 | E185: 0
B186: 36.6 | C186: 1.0004 | D186: 0 | E186: 0
B187: 36.8 | C187: 1.005866667 | D187: 0 | E187: 0
B188: 37.0 | C188: 1.011333333 | D188: 0 | E188: 0
B189: 37.2 | C189: 1.0168 | D189: 0 | E189: 0
B190: 37.4 | C190: 1.022266667 | D190: 0 | E190: 0
B191: 37.6 | C191: 1.027733333 | D191: 0 | E191: 0
B192: 37.8 | C192: 1.0332 | D192: 0 | E192: 0
B193: 38.0 | C193: 1.038666667 | D193: 0 | E193: 0
B194: 38.2 | C194: 1.044133333 | D194: 0 | E194: 0
B195: 38.4 | C195: 1.0496 | D195: 0 | E195: =(D196-D195)/dt -> 0
B196: 38.6 | C196: =B196*dt -> 1.055066667 | D196: =IF(L^2-B196^2<0,0,SQRT(L^2-B196^2)) -> 0 | E196: 0
B197: =B196+0.2 -> 38.8 | C197: 1.060533333 | D197: 0 | E197: 0
B198: 39.0 | C198: 1.066 | D198: 0 | E198: 0
B199: 39.2 | C199: 1.071466667 | D199: 0 | E199: 0
B200: 39.4 | C200: 1.076933333 | D200: 0 | E200: 0
... 3 more rows

Sheet Sheet1
